Cogmind - Beta 13 --- EXPLORER MODE // 2024.06.14 @ 18:51:32 Player: Agod Result: Destroyed by GT-FZV(z) with Zionite Laser-S Performance ------------- Evolutions (1) 500 Regions Visited (6) 1200 Robots Destroyed (26) 130 Value Destroyed (404) 404 Prototype IDs (6) 120 Alien Tech Used (0) 0 Bonus (1273) 1273 TOTAL SCORE: 3627 Bonus ------- Met Imprinter 300 Destroyed Z-Imprinter 1000 Friendly Fire -27 Cogmind --------- Core Integrity 0/400 Matter 218/300 Energy 69/100 System Corruption 0% Temperature Cool (9) Movement Core (50) Location -7/Deep Caves Parts ------- > --- POWER (1) -------- (None) > --- PROPULSION (4) --- (None) > --- UTILITY (3) ------ Experimental Heat Sink Makeshift Salvage Targeting Computer > --- WEAPON (2) ------- (None) > --- INVENTORY (5) ---- Light Angular Momentum Engine Makeshift Leg Makeshift Light Armor Plating Makeshift Laser Makeshift Spear Peak State ------------ > --- POWER ------------ Improved Ion Engine > --- PROPULSION ------- Aluminum Leg Aluminum Leg Improved Aluminum Leg Makeshift Leg > --- UTILITY ---------- Medium Storage Unit Makeshift Salvage Targeting Computer Makeshift Light Armor Plating > --- WEAPON ----------- Assault Rifle Makeshift Spear > --- INVENTORY -------- Light Angular Momentum Engine Makeshift Leg Improved Heat Sink Makeshift Light Armor Plating Makeshift Laser Assault Rifle Makeshift Shrapnel Gun Battle Cannon Rocket Launcher GAL Module [Rating: 27] Favorites ----------- Power Improved Ion Engine Engine Improved Ion Engine Propulsion Aluminum Leg Treads Light Treads Leg Aluminum Leg Hover Unit Zionite Glidesys II Utility Medium Storage Unit Device Seismic Detector Storage Medium Storage Unit Processor Targeting Computer Protection Makeshift Light Armor Plating Weapon Assault Rifle Energy Gun Small Laser Ballistic Gun Assault Rifle Ballistic Cannon Battle Cannon Launcher Rocket Launcher Piercing Weapon Makeshift Spear Build | -11 -10 -10 -9 -9 -7 -7 ------- Run | Yrd Mat Min Mat Min Zio Dee Slots Evolved 3 | . 1 . 2 . . . Power . | . . . . . . . Propulsion 2 | . . . 2 . . . Utility 1 | . 1 . . . . . Weapon . | . . . . . . . Parts Attached 36 | 9 4 2 7 . 9 5 Power 2 | 1 . . 1 . . . Engine 2 | 1 . . 1 . . . Core . | . . . . . . . Reactor . | . . . . . . . Propulsion 11 | 4 . . 3 . 3 1 Treads 2 | 2 . . . . . . Leg 8 | 2 . . 3 . 3 . Wheel . | . . . . . . . Hover 1 | . . . . . . 1 Flight . | . . . . . . . Utility 10 | 2 1 . 1 . 4 2 Device 4 | . 1 . 1 . 1 1 Storage 2 | 1 . . . . . 1 Processor 2 | 1 . . . . 1 . Hackware . | . . . . . . . Protection 2 | . . . . . 2 . Artifact . | . . . . . . . Weapon 13 | 2 3 2 2 . 2 2 Energy Gun 1 | 1 . . . . . . Energy Cannon . | . . . . . . . Ballistic Gun 8 | 1 3 1 2 . 1 . Ballistic Cannon 1 | . . . . . . 1 Launcher 2 | . . 1 . . . 1 Special Weapon . | . . . . . . . Impact Weapon . | . . . . . . . Slashing Weapon . | . . . . . . . Piercing Weapon 1 | . . . . . 1 . Special Melee Weapon . | . . . . . . . Unidentified Prototypes 4 | . . . . . 1 3 Parts Lost 9 | . . . . . . 9 Power 1 | . . . . . . 1 Propulsion 5 | . . . . . . 5 Utility . | . . . . . . . Weapon 3 | . . . . . . 3 Highest Loss Streak 8 | . . . . . . 8 To Critical Strikes . | . . . . . . . Average Slot Usage (%) 94 | . 95 100 86 90 97 80 Engine 10 | . 12 12 10 10 10 6 Leg 32 | . 25 25 28 30 37 29 Device 4 | . 7 12 10 10 2 1 Storage 10 | . 12 12 10 10 10 8 Processor 10 | . 12 12 10 10 10 10 Protection 4 | . . . . . 7 8 Ballistic Gun 19 | . 20 25 18 20 19 14 Naked Turns . | . . . . . . . Heaviest Build 25 | 17 20 20 22 22 25 25 Greatest Support 63 | 20 20 20 33 33 63 53 Greatest Overweight (x) 1 | . . . 1 . . . Average Overweight (x) . | . . . . . . . Largest Inventory Capacity 10 | 10 10 10 10 10 10 10 Average Capacity 9 | 9 10 10 10 10 10 8 Most Carried 10 | 5 10 10 10 10 10 10 Average Carried 9 | 2 7 10 9 10 9 8 Final Capacity 10 | 10 10 10 10 10 10 5 Final Carried 10 | 5 10 10 10 10 10 5 Class Distribution -------------------- 100% | Hacker-Mutant Dominant Class ---------------- Hacker-Mutant | -10/Materials Hacker-Mutant | -10/Mines Hacker-Mutant | -9/Materials Hacker-Mutant | -9/Mines Hacker-Mutant | -7/Zion Hacker-Mutant | -7/Deep Caves Resources | -11 -10 -10 -9 -9 -7 -7 ----------- Run | Yrd Mat Min Mat Min Zio Dee Matter Collected 905 | 296 163 12 267 . 66 101 Remotely . | . . . . . . . Salvage Created 984 | 97 261 . 489 . . 137 Parts 59 | 8 16 . 29 . . 6 Haulers Intercepted 3 | . 1 . 2 . . . Recyclers Shooed 3 | . 2 . 1 . . . Parts Field Recycled . | . . . . . . . Retrieved Matter . | . . . . . . . Parts Self-Destructed . | . . . . . . . Prevented . | . . . . . . . Kills | -11 -10 -10 -9 -9 -7 -7 ------- Run | Yrd Mat Min Mat Min Zio Dee Combat Hostiles Destroyed 13 | . 4 . 6 . . 3 Guns 10 | . 4 . 6 . . . AOE 3 | . . . . . . 3 Classes Destroyed 8 | 2 3 . 2 . . 1 Tunneler 2 | 2 . . . . . . Hauler 3 | . 1 . 2 . . . Recycler 5 | 1 2 . 2 . . . Operator 1 | . . . 1 . . . Watcher 2 | . 2 . . . . . Swarmer 7 | . 4 . 3 . . . Sentry 3 | . . . 3 . . . Z-Light 2 | . . . . . . 2 Best Kill Streak 5 | 2 5 . 4 . . 3 Combat Bots Only 3 | . 2 . 3 . . 3 Max Kills in Single Turn 2 | 1 1 . 2 . . 2 Gunslinging 1 | . . . 1 . . . Exploded 2 | . . . . . . 2 Melee . | . . . . . . . Uniques/NPCs Destroyed 1 | . . . . . . 1 Z-Imprinter (-7/Deep Caves) Combat | -11 -10 -10 -9 -9 -7 -7 -------- Run | Yrd Mat Min Mat Min Zio Dee Hostile Shots Fired 157 | . 10 . 31 . . 116 Missed 50 | . 5 . 9 . . 36 Damage Taken 1837 | . 68 . 175 . . 1594 Core 432 | . 16 . 19 . . 397 Absorbed by Shields . | . . . . . . . Ignored by Resistances 1070 | . 43 . 109 . . 918 Regen/Repaired (Parts) 220 | . . . . . 220 . Core Remaining (%) 96 | 100 . 93 . . . . Volleys Fired 82 | 6 25 . 31 . . 20 Largest 2 | 2 2 . 2 . . 2 Hottest 72 | 60 60 . 40 . . 72 Shots Fired 155 | 12 50 . 59 . . 34 Gun 144 | 12 50 . 59 . . 23 Cannon 6 | . . . . . . 6 Launcher 5 | . . . . . . 5 Special . | . . . . . . . Kinetic 141 | 6 47 . 59 . . 29 Thermal 9 | 6 3 . . . . . Explosive 5 | . . . . . . 5 Electromagnetic . | . . . . . . . Robot Hit Streak 17 | 10 17 . 16 . . 3 Robot Miss Streak 5 | . 1 . 2 . . 5 Penetration Max . | . . . . . . . Secondary Targets 4 | . . . 4 . . . Max Gunslinging Chain 1 | . . . 1 . . . Shots Hit Robots 112 | 10 39 . 47 . . 16 Core Hits 50 | 5 13 . 18 . . 14 Critical Kills . | . . . . . . . Critical Parts Destroyed . | . . . . . . . Critical Strikes . | . . . . . . . Melee Attacks 1 | . . . . . 1 . Impact . | . . . . . . . Slashing . | . . . . . . . Piercing 1 | . . . . . 1 . Sneak Attacks . | . . . . . . . Combat Hostiles . | . . . . . . . Follow-up Attacks . | . . . . . . . Damage Inflicted 1624 | 99 472 . 578 . . 475 Guns 1343 | 99 472 . 578 . . 194 Cannons 84 | . . . . . . 84 Explosions 197 | . . . . . . 197 Melee . | . . . . . . . Ramming . | . . . . . . . Kinetic 1326 | 32 438 . 578 . . 278 Thermal 101 | 67 34 . . . . . Explosive 197 | . . . . . . 197 Electromagnetic . | . . . . . . . Impact . | . . . . . . . Slashing . | . . . . . . . Piercing . | . . . . . . . Highest Corruption 1 | . 1 1 . . . . Average Corruption 1 | . 1 1 . . . . Corruption Purged . | . . . . . . . Corruption Blocked . | . . . . . . . Effects 1 | . . 1 . . . . Data Loss (major) 1 | . . 1 . . . . Overload Shots . | . . . . . . . Overflow Damage . | . . . . . . . Projectiles . | . . . . . . . Explosions . | . . . . . . . Melee . | . . . . . . . Knockbacks . | . . . . . . . Impact . | . . . . . . . Kinetic . | . . . . . . . Secondary . | . . . . . . . Self-Inflicted Damage . | . . . . . . . Shots . | . . . . . . . Rammed . | . . . . . . . Targets Rammed . | . . . . . . . Kicked . | . . . . . . . Crushed . | . . . . . . . Highest Temperature 277 | 20 20 . 18 . . 277 Average Temperature 98 | 15 13 . 13 . . 127 Received Heat Transfer 828 | . . . 108 . . 720 Siege Activations . | . . . . . . . Robots Corrupted . | . . . . . . . Combat Hostiles . | . . . . . . . Parts Fried . | . . . . . . . Impact Corruptions . | . . . . . . . Robots Melted . | . . . . . . . Combat Hostiles . | . . . . . . . Parts Melted 1 | . . . . . . 1 Heat Transferred 225 | 150 75 . . . . . Parts Sabotaged . | . . . . . . . Parts Stolen . | . . . . . . . Parts Stripped . | . . . . . . . Power Chain Reactions . | . . . . . . . Alert | -11 -10 -10 -9 -9 -7 -7 ------- Run | Yrd Mat Min Mat Min Zio Dee Peak Influence 144 | 15 97 26 144 . . . Initial 26 | . 7 26 7 . . . Average 32 | 8 27 26 55 . . . Maximum Alert Level . | . . . . . . . Low Security (%) 100 | 100 100 100 100 100 . . Level 1 . | . . . . . . . Level 2 . | . . . . . . . Level 3 . | . . . . . . . Level 4 . | . . . . . . . Level 5 . | . . . . . . . High Security . | . . . . . . . Max Security . | . . . . . . . Squads Dispatched 2 | . 1 . 1 . . . Investigation 1 | . 1 . . . . . Extermination . | . . . . . . . Reinforcement 1 | . . . 1 . . . Assault . | . . . . . . . Garrison . | . . . . . . . Intercept . | . . . . . . . Searches Triggered . | . . . . . . . Construction Impeded . | . . . . . . . Haulers Reinforced . | . . . . . . . Active Scanning Responses . | . . . . . . . Cargo Convoy Interrupts . | . . . . . . . Stealth | -11 -10 -10 -9 -9 -7 -7 --------- Run | Yrd Mat Min Mat Min Zio Dee Distress Signals 2 | . 1 . 1 . . . Communications Jammed . | . . . . . . . Distress Signals . | . . . . . . . Times Spotted 28 | . 10 . 12 . . 6 Peak Tracking Total 5 | . 3 . 5 . . 5 Tactical Retreats . | . . . . . . . Traps | -11 -10 -10 -9 -9 -7 -7 ------- Run | Yrd Mat Min Mat Min Zio Dee Traps Triggered 4 | . 2 . 2 . . . Indirectly . | . . . . . . . Trap Hack Attempts . | . . . . . . . Triggered . | . . . . . . . Disarmed . | . . . . . . . Reprogrammed . | . . . . . . . Reused . | . . . . . . . Traps Extracted . | . . . . . . . Installed . | . . . . . . . Triggered . | . . . . . . . Machines | -11 -10 -10 -9 -9 -7 -7 ---------- Run | Yrd Mat Min Mat Min Zio Dee Machines Disabled . | . . . . . . . Max in Single Turn . | . . . . . . . Machines Repaired . | . . . . . . . Machines Dismantled . | . . . . . . . Machines Sabotaged . | . . . . . . . Overloaded Fab Kills . | . . . . . . . Hacking | -11 -10 -10 -9 -9 -7 -7 --------- Run | Yrd Mat Min Mat Min Zio Dee Machines Accessed 9 | . 4 . 5 . . . Terminals 8 | . 3 . 5 . . . Fabricators . | . . . . . . . Repair Stations . | . . . . . . . Recycling Units 1 | . 1 . . . . . Scanalyzers . | . . . . . . . Garrison Access . | . . . . . . . Total Hacks 22 | . 8 . 14 . . . Successful 14 | . 6 . 8 . . . Failed 8 | . 2 . 6 . . . Catastrophic 1 | . 1 . . . . . Database Lockouts . | . . . . . . . Manual 23 | . 6 . 12 . 5 . Terminals 21 | . 7 . 14 . . . Fabricators . | . . . . . . . Repair Stations . | . . . . . . . Recycling Units 1 | . 1 . . . . . Scanalyzers . | . . . . . . . Garrison Access . | . . . . . . . Terminal Hacks 6 | . 3 . 3 . . . Prototype ID Bank 1 | . 1 . . . . . Branch Access Points 2 | . 1 . 1 . . . Unreport Threat 2 | . . . 2 . . . Maintenance Status 1 | . 1 . . . . . Fabricator Hacks . | . . . . . . . Repair Station Hacks . | . . . . . . . Recycling Unit Hacks . | . . . . . . . Scanalyzer . | . . . . . . . Garrison Access Hacks . | . . . . . . . Unauthorized Hacks 8 | . 3 . 5 . . . Terminals 7 | . 2 . 5 . . . Botnet 7 | . 2 . 5 . . . Fabricators . | . . . . . . . Repair Stations . | . . . . . . . Recycling Units 1 | . 1 . . . . . Tunnel 1 | . 1 . . . . . Scanalyzers . | . . . . . . . Garrison Access . | . . . . . . . Data Cores Recovered . | . . . . . . . Used . | . . . . . . . Hacking Detections 7 | . 3 . 4 . . . Full Trace Events 1 | . . . 1 . . . Feedback Events . | . . . . . . . Feedback Blocked . | . . . . . . . Robot Schematics Acquired 3 | . . . . . 3 . Robots Built . | . . . . . . . Authchips . | . . . . . . . Time . | . . . . . . . Total Robot Build Rating . | . . . . . . . Part Schematics Acquired 15 | . . . . . 15 . Parts Built . | . . . . . . . Authchips . | . . . . . . . Time . | . . . . . . . Total Part Build Rating . | . . . . . . . Parts Repaired . | . . . . . . . Time . | . . . . . . . Parts Recycled . | . . . . . . . Recycled Matter . | . . . . . . . Retrieved Matter . | . . . . . . . Retrieved Components . | . . . . . . . Parts Scanalyzed . | . . . . . . . Part Schematics Acquired . | . . . . . . . Parts Damaged . | . . . . . . . Bothacking | -11 -10 -10 -9 -9 -7 -7 ------------ Run | Yrd Mat Min Mat Min Zio Dee Used RIF Installer . | . . . . . . . Robots Hacked . | . . . . . . . Non-combat . | . . . . . . . Combat . | . . . . . . . Robot Hacks Applied . | . . . . . . . Relay Couplers Released . | . . . . . . . Fabnet Peak Effective % . | . . . . . . . Robots Rewired . | . . . . . . . Allies Hacked . | . . . . . . . Hacks Repelled . | . . . . . . . Allies | -11 -10 -10 -9 -9 -7 -7 -------- Run | Yrd Mat Min Mat Min Zio Dee Total Allies 5 | . . . . 5 . . Largest Group 5 | . . . . 5 5 3 Highest-Rated Group 83 | . . . . 83 83 40 Highest-Rated Ally 31 | . . . . 31 31 16 Total Orders . | . . . . . . . Ally Attacks 55 | . . . . . . 55 Total Damage 518 | . . . . . . 518 Kills 4 | . . . . . . 4 Allies Corrupted . | . . . . . . . Allies Melted . | . . . . . . . Intel | -11 -10 -10 -9 -9 -7 -7 ------- Run | Yrd Mat Min Mat Min Zio Dee Robot Analysis Total . | . . . . . . . Derelict Logs Recovered 3 | . . 1 . . 2 . Drone Launches . | . . . . . . . Drone Recoveries . | . . . . . . . Exploration | -11 -10 -10 -9 -9 -7 -7 ------------- Run | Yrd Mat Min Mat Min Zio Dee Turns Passed 3876 | 202 650 245 502 69 1989 219 Spaces Moved 2727 | 140 325 202 303 55 1554 148 Core 25 | 6 . . . . . 19 Treads . | . . . . . . . Legs 2664 | 134 325 202 303 55 1554 91 Wheels . | . . . . . . . Hover 38 | . . . . . . 38 Flight . | . . . . . . . Fastest Speed 50 | 50 120 120 120 120 120 50 Average Speed 121 | 117 120 120 120 120 124 98 Slowest Speed 190 | 120 120 120 190 120 130 125 Overloaded Moves . | . . . . . . . Propulsion Burnouts . | . . . . . . . Robots Hopped . | . . . . . . . Cave-ins Triggered . | . . . . . . . Exploration Rate (%) 40 | 6 59 55 29 21 84 30 Regions Visited 6 Branch Regions 4 Pre-discovered Areas 1 | . 1 . . . . . Known Exits Taken 5 | 1 1 1 1 . 1 . Unknown Exits Taken 1 | . . . . 1 . . Scrap Searched 2 | . . . . . 2 . Spaces Dug . | . . . . . . . Terrain Destroyed 11 | . . . . . . 11 Melee . | . . . . . . . Projectile . | . . . . . . . AOE 11 | . . . . . . 11 Terrain Rammed . | . . . . . . . Walls Destroyed . | . . . . . . . Machines Disabled . | . . . . . . . Actions | -11 -10 -10 -9 -9 -7 -7 --------- Run | Yrd Mat Min Mat Min Zio Dee Total 3152 | 165 538 204 384 58 1616 187 Wait 238 | . 170 . 35 4 19 10 Move 2721 | 139 324 201 302 54 1553 148 Hop . | . . . . . . . Pick Up 35 | 6 9 . 5 . 15 . Fast Attach 23 | 9 1 1 5 . 4 3 Attach 6 | . 2 . 2 . . 2 Detach 4 | 2 1 . . . 1 . Swap 7 | . 1 1 . . 5 . Drop 35 | 3 5 1 4 . 18 4 Fire 82 | 6 25 . 31 . . 20 Melee 1 | . . . . . 1 . Ram . | . . . . . . . Kick . | . . . . . . . Crush . | . . . . . . . Escape Stasis . | . . . . . . . Rewire . | . . . . . . . Trap . | . . . . . . . Miscellaneous . | . . . . . . . Route ------- -11/Scrapyard -10/Materials (discovered 4 exits: *Mat x2 / *Min x2) -10/Mines -9/Materials (discovered 2 exits: Mat / *Min) -9/Mines -7/Zion -7/Deep Caves History --------- Turn | Location | Event 64 | -11/Scrapyard | Identified exit to Materials 64 | -11/Scrapyard | Discovered exit to Materials (range 15) 203 | -11/Scrapyard | Entered Materials 203 | -10/Materials | Evolved 1 slot: Utility x1 318 | -10/Materials | Build established: Hacker-Mutant 548 | -10/Materials | Identified exit to Materials 548 | -10/Materials | Discovered exit to Materials (range 13) 569 | -10/Materials | Identified exit to Mines 696 | -10/Materials | Discovered exit to Materials (range 8) 703 | -10/Materials | Derelicts attacked the area 853 | -10/Materials | Entered Mines 930 | -10/Mines | Received a Rocket Launcher from a helpful Derelict 1059 | -10/Mines | Learned 2 Materials zone layouts 1074 | -10/Mines | Discovered exit to Materials (range 8) 1098 | -10/Mines | Entered Materials 1098 | -9/Materials | Evolved 2 slots: Propulsion x2 1099 | -9/Materials | Identified exit to Materials 1151 | -9/Materials | Identified exit to Mines 1600 | -9/Materials | Entered Mines 1608 | -9/Mines | Assisted by bots powering up and referring to "LRC-V3" 1665 | -9/Mines | A Derelict revealed a hidden shortcut to a safe place 1669 | -9/Mines | Entered Zion 1669 | -7/Zion | Accompanied by 5 allies 1683 | -7/Zion | Given the Hacking Drone Bay 1683 | -7/Zion | Found Prototype Device 1719 | -7/Zion | Led the pair of lost Derelicts to a safe place 1820 | -7/Zion | Found GAL Module 2017 | -7/Zion | Acquired unknown access codes intercepted by a Zionite 2135 | -7/Zion | Visited the Megawrench Repair Shop 2233 | -7/Zion | Megawrench repaired 7 parts 2375 | -7/Zion | Learned 8 Factory zone layouts 2661 | -7/Zion | Identified Hacking Drone Bay 3332 | -7/Zion | Opened final containment barrier to the Deep Caves 3352 | -7/Zion | Identified exit to Deep Caves 3352 | -7/Zion | Discovered exit to Deep Caves (range 3) 3352 | -7/Zion | Saw the warning signs outside the Deep Caves entrance 3658 | -7/Zion | Entered Deep Caves 3658 | -7/Deep Caves | Accompanied by 3 allies 3763 | -7/Deep Caves | Attacked by Z-Imprinter 3818 | -7/Deep Caves | Core integrity fell below 50% 3827 | -7/Deep Caves | Core integrity fell below 20% 3831 | -7/Deep Caves | Destroyed Z-Imprinter 3861 | -7/Deep Caves | Lost 8 parts (1p4n3w) 3873 | -7/Deep Caves | Z-Facility disabled 3877 | -7/Deep Caves | Destroyed by GT-FZV(z) with Zionite Laser-S Last Messages --------------- 03830_ Mak. Leg destroyed. 03831_ Z-Imprinter: "You cannot stop us! Another will take my place! Derelicts will one day ru..." 03831_ Z-Imprinter destroyed. 03833_ Dropped Med. Storage Unit. 03834_ Dropped Mak. Light Armor Plating. 03834_ Dropped Rocket Launcher. 03839_ Acquired 40 matter. 03841_ Acquired 5 matter. 03843_ Acquired Prototype Device. 03843_ Identified Exp. Heat Sink. 03845_ Acquired 56 matter. 03846_ Acquired Prototype Hover Unit. 03846_ Identified Zio. Glidesys II. 03848_ Acquired Prototype Storage. 03848_ Identified Zio. Biocell. 03849_ Dropped Zio. Biocell. 03873_ Z-Facility disabled. 03874_ Zio. Glidesys II destroyed. Map ----- +----------------------------------------------------+ | | | | | | | | | | | | | | | | | | | | | | | | | | | | | | | | | | | ?????????????????????????????????????????????????? | | ??????????????????????????????###############????? | | ???????????????????????????#### ##???? | | ??????????????????????#???## #???? | | ??????????????#???????# ?## ##### | | ????????????### #???# ## ## | | ????????????# z z ## | | ?????????? z | | ?????????? @ | | ?????????? | | ?????????? | | ??????????? """" """""" | | ??????????? """""""""""""" | | ???????????? """"""""""""" | | ???????????? """""""""""""" | | ???????????? """"""""""" ! | | ????????????? """?????"""""" [! | | ????????????? ""??????"""""" ! | | ?????????????? "????????""""" | | ?????????????? "????????""""" | | ???????????????? "???????? " " | | ?????????????????? ????????"% % | | ????????????????????? ????????" = | | ??????????????????????? ????????""%* | | ???????????????????????????????????"" | | ???????????????????????????????????"""" = | | ????????????????????????????????????"""""% | | ????????????????????????????????????? | | ???????????????????????????????????????" | | ??????????????????????????????????????""" | | ????????????????????????????????????????"" | | ?????????????????????????????????????????" | | ??????????????????????????????????????????? | +----------------------------------------------------+ Best States ------------- Heat Dissipation 54 Energy Generation 12 Energy Capacity 265 Matter Stores 300 Matter Capacity 300 Sight Range 16 Terrain Scan Density 10 Armor Coverage 100 Resistance: KI 35 Resistance: TH 35 Resistance: EX 35 Resistance: EM 35 Resistance: I 35 Resistance: S 35 Resistance: P 35 Evasion (%) 55 Targeting Accuracy 5 Salvage Targeting 4 Offensive Hacking 20 Item Schematics ----------------- Med. Treads | -7/Zion | Archive Proton Cannon | -7/Zion | Archive Plasma Rifle | -7/Zion | Archive Mak. Leg | -7/Zion | Archive Imp. Reaction Control System | -7/Zion | Archive Mak. Kinetic Plating | -7/Zion | Archive Imp. Thermal Shield | -7/Zion | Archive Med. Reactive Plating | -7/Zion | Archive Core Analyzer | -7/Zion | Archive Matter Compressor | -7/Zion | Archive Great Axe | -7/Zion | Archive Coil Gun | -7/Zion | Archive Mak. Power Source | -7/Zion | Archive Mak. Ablative Armor | -7/Zion | Archive HERF Cannon | -7/Zion | Archive Robot Schematics ------------------ T-07 Excavator | -7/Zion | Archive L-41 Fighter | -7/Zion | Archive L-31 Rogue | -7/Zion | Archive Fabricated ------------ Nothing Alien Tech Used ----------------- None Achievements -------------- None Challenges ------------ None Game ------ Seed MassRecoilCompressor Manual? 0 Play Time 00:35:28 Cumulative 44.0 hours Start 2024.06.14 @ 18:17:34 End 2024.06.14 @ 18:51:32 Sessions 1 Manual Loads 0 Difficulty Explorer Special Mode None Game No. 12 Rogue 0 Adventurer 0 Explorer 12 Win Type - Total 6 Types 3/0/2/0/0/0/0/1/0 Lore% 58 Gallery% 38 Achievement% 53 Wizard Run 0 Options --------- Layout 1 ASCII 0 Keyboard 1 Movement Numpad Keybinds 0 Fullscreen 1 Font 24/Smallcaps Map View 50x35 Zoom Use 0% Tactical HUD 1 Map Filters NONE Filters NONE Steam 1 RUN: 2be406d1-36b9-44ad-ae15-9125e7cf47f1